[Event "LASS Vårturneringar 2018"]
[Site "Linköping, Sweden"]
[Date "2018.05.10"]
[Round "1.5"]
[White "Ivarsson, Simon"]
[Black "Olsson, Simon"]
[Result "0-1"]
[TimeControl "90 min + 30 sec/move + 30 min/40 moves"]
[WhiteElo "1726"]
[BlackElo "2110"]

1. e4 {[%clk 01:30:57]} {[%emt 00:00:02]} c5 {[%clk 01:31:00]} 2. Nf3 {[%clk
01:31:23]} {[%emt 00:00:04]} Nc6 {[%clk 01:31:23]} {[%emt 00:00:08]} 3. d4
{[%clk 01:32:11]} {[%emt 00:00:10]} cxd4 {[%clk 01:32:18]} {[%emt 00:00:06]} 4.
Nxd4 {[%clk 01:32:39]} {[%emt 00:00:02]} Nf6 {[%clk 01:32:42]} {[%emt
00:00:06]} 5. Nc3 {[%clk 01:32:50]} {[%emt 00:00:18]} e6 {[%clk 01:33:08]}
{[%emt 00:00:05]} 6. Be2 {[%clk 01:33:07]} {[%emt 00:00:12]} Bb4 {[%clk
01:33:24]} {[%emt 00:00:14]} 7. f3 {[%clk 01:33:14]} {[%emt 00:00:23]} d5
{[%clk 01:31:22]} {[%emt 00:02:32]} 8. Nxc6 {[%clk 01:29:10]} {[%emt 00:04:34]}
bxc6 {[%clk 01:30:40]} {[%emt 00:01:12]} 9. exd5 {[%clk 01:29:23]} {[%emt
00:00:17]} Nxd5 {[%clk 01:23:41]} {[%emt 00:07:30]} 10. Bd2 {[%clk 01:28:29]}
{[%emt 00:01:22]} Nxc3 {[%clk 01:20:28]} {[%emt 00:03:44]} 11. Bxc3 {[%clk
01:27:20]} {[%emt 00:01:38]} Bxc3+ {[%clk 01:20:51]} {[%emt 00:00:07]} 12. bxc3
{[%clk 01:27:34]} {[%emt 00:00:15]} Qxd1+ {[%clk 01:11:41]} {[%emt 00:09:37]}
13. Rxd1 {[%clk 01:27:38]} {[%emt 00:00:26]} Ke7 {[%clk 01:12:05]} {[%emt
00:00:06]} 14. Kf2 {[%clk 01:27:46]} {[%emt 00:00:22]} e5 {[%clk 01:03:58]}
{[%emt 00:08:38]} 15. g4 {[%clk 01:24:59]} {[%emt 00:02:57]} Be6 {[%clk
01:02:49]} {[%emt 00:01:40]} 16. a3 {[%clk 01:23:29]} {[%emt 00:02:20]} Rab8
{[%clk 00:47:07]} {[%emt 00:16:11]} 17. Rb1 {[%clk 01:22:08]} {[%emt 00:01:51]}
Rhd8 {[%clk 00:38:57]} {[%emt 00:08:40]} 18. Ke3 {[%clk 01:21:11]} {[%emt
00:01:26]} Rb6 {[%clk 00:35:10]} {[%emt 00:04:19]} 19. Rb4 {[%clk 01:19:10]}
{[%emt 00:02:29]} c5 {[%clk 00:32:44]} {[%emt 00:02:58]} 20. Rxb6 {[%clk
01:16:59]} {[%emt 00:02:42]} axb6 {[%clk 00:33:12]} {[%emt 00:00:01]} 21. Rb1
{[%clk 01:17:17]} {[%emt 00:00:10]} Rd6 {[%clk 00:32:28]} {[%emt 00:01:15]} 22.
h4 {[%clk 01:15:38]} {[%emt 00:02:06]} Kd8 {[%clk 00:30:02]} {[%emt 00:02:59]}
23. Bb5 {[%clk 01:08:50]} {[%emt 00:07:17]} Kc7 {[%clk 00:29:44]} {[%emt
00:00:49]} 24. Ra1 {[%clk 01:03:21]} {[%emt 00:05:59]} Rd8 {[%clk 00:27:16]}
{[%emt 00:02:58]} 25. Bd3 {[%clk 01:01:38]} {[%emt 00:02:12]} h6 {[%clk
00:24:35]} {[%emt 00:03:11]} 26. Bb5 {[%clk 00:57:17]} {[%emt 00:04:50]} Ra8
{[%clk 00:15:50]} {[%emt 00:09:16]} 27. Ke4 {[%clk 00:55:05]} {[%emt 00:02:41]}
f6 {[%clk 00:15:12]} {[%emt 00:01:09]} 28. Be2 {[%clk 00:54:25]} {[%emt
00:01:10]} Ra4+ {[%clk 00:14:48]} {[%emt 00:00:54]} 29. Ke3 {[%clk 00:51:31]}
{[%emt 00:03:24]} Kc6 {[%clk 00:12:23]} {[%emt 00:02:55]} 30. Kf2 {[%clk
00:50:10]} {[%emt 00:01:50]} Bd5 {[%clk 00:07:09]} {[%emt 00:05:45]} 31. Ke3
{[%clk 00:46:39]} {[%emt 00:03:59]} b5 {[%clk 00:05:39]} {[%emt 00:02:01]} 32.
Rb1 {[%clk 00:45:27]} {[%emt 00:01:43]} Rxa3 {[%clk 00:04:46]} {[%emt
00:01:23]} 33. Bxb5+ {[%clk 00:45:01]} {[%emt 00:00:57]} Kc7 {[%clk 00:05:02]}
{[%emt 00:00:14]} 34. Kd2 {[%clk 00:43:11]} {[%emt 00:02:19]} Bxf3 {[%clk
00:05:13]} {[%emt 00:00:19]} 35. g5 {[%clk 00:43:29]} {[%emt 00:00:12]} hxg5
{[%clk 00:04:41]} {[%emt 00:01:02]} 36. hxg5 {[%clk 00:42:51]} {[%emt
00:01:08]} fxg5 {[%clk 00:05:08]} {[%emt 00:00:04]} 37. Rg1 {[%clk 00:41:45]}
{[%emt 00:01:35]} g4 {[%clk 00:05:33]} {[%emt 00:00:06]} 38. Rg3 {[%clk
00:41:42]} {[%emt 00:00:32]} Kd6 {[%clk 00:03:57]} {[%emt 00:02:08]} 39. Be2
{[%clk 00:35:48]} {[%emt 00:06:24]} Bxe2 {[%clk 00:03:59]} {[%emt 00:00:27]} 40.
Kxe2 {[%clk 00:35:49]} {[%emt 00:00:27]} Ra4 {[%clk 00:04:20]} {[%emt
00:00:10]} 41. Rd3+ {[%clk 00:34:19]} {[%emt 00:02:00]} Ke6 {[%clk 00:03:58]}
{[%emt 00:00:52]} 42. Kf2 {[%clk 00:33:58]} {[%emt 00:00:49]} Rf4+ {[%clk
00:01:34]} {[%emt 00:02:55]} 43. Kg3 {[%clk 00:33:55]} {[%emt 00:00:33]} Rf3+
{[%clk 00:30:10]} {[%emt 00:01:54]} 44. Kxg4 {[%clk 01:04:09]} {[%emt
00:00:16]} Rxd3 {[%clk 00:30:31]} {[%emt 00:00:09]} 45. cxd3 {[%clk 01:04:35]}
{[%emt 00:00:04]} e4 {[%clk 00:25:40]} {[%emt 00:05:21]} 46. dxe4 {[%clk
01:02:30]} {[%emt 00:02:35]} Ke5 {[%clk 00:26:04]} {[%emt 00:00:07]} 47. Kf3
{[%clk 01:02:39]} {[%emt 00:00:21]} c4 {[%clk 00:26:27]} {[%emt 00:00:07]} 0-1

[Event "LASS Vårturneringar 2018"]
[Site "Linköping, Sweden"]
[Date "2018.05.10"]
[Round "1.6"]
[White "Karlsson, Henrik"]
[Black "Wahlund, Max"]
[Result "0-1"]
[TimeControl "90 min + 30 sec/move + 30 min/40 moves"]
[WhiteElo "1699"]
[BlackElo "2097"]

1. e4 {[%clk 01:30:57]} {[%emt 00:00:02]} e5 {[%clk 01:30:54]} {[%emt
00:00:06]} 2. Nf3 {[%clk 01:31:20]} {[%emt 00:00:06]} Nc6 {[%clk 01:31:23]}
{[%emt 00:00:02]} 3. d4 {[%clk 01:31:44]} {[%emt 00:00:06]} exd4 {[%clk
01:31:49]} {[%emt 00:00:04]} 4. Nxd4 {[%clk 01:32:09]} {[%emt 00:00:06]} Nf6
{[%clk 01:32:01]} {[%emt 00:00:17]} 5. Nc3 {[%clk 01:31:07]} {[%emt 00:01:32]}
Bb4 {[%clk 01:32:00]} {[%emt 00:00:32]} 6. Nxc6 {[%clk 01:31:18]} {[%emt
00:00:19]} bxc6 {[%clk 01:32:10]} {[%emt 00:00:20]} 7. Bd3 {[%clk 01:31:40]}
{[%emt 00:00:07]} d5 {[%clk 01:31:08]} {[%emt 00:01:32]} 8. exd5 {[%clk
01:31:42]} {[%emt 00:00:28]} cxd5 {[%clk 01:31:20]} {[%emt 00:00:18]} 9. O-O
{[%clk 01:31:10]} {[%emt 00:01:00]} O-O {[%clk 01:31:03]} {[%emt 00:00:49]} 10.
Bg5 {[%clk 01:30:15]} {[%emt 00:01:25]} c6 {[%clk 01:28:48]} {[%emt 00:02:45]}
11. Ne2 {[%clk 01:23:35]} {[%emt 00:07:10]} h6 {[%clk 01:25:22]} {[%emt
00:03:57]} 12. Be3 {[%clk 01:09:26]} {[%emt 00:14:35]} Re8 {[%clk 01:21:47]}
{[%emt 00:04:05]} 13. c3 {[%clk 00:59:23]} {[%emt 00:10:33]} Bd6 {[%clk
01:21:34]} {[%emt 00:00:43]} 14. Bf4 {[%clk 00:56:49]} {[%emt 00:03:04]} Rb8
{[%clk 01:14:21]} {[%emt 00:07:43]} 15. Rb1 {[%clk 00:52:09]} {[%emt 00:05:10]}
c5 {[%clk 01:12:12]} {[%emt 00:02:37]} 16. Bxd6 {[%clk 00:50:15]} {[%emt
00:02:25]} Qxd6 {[%clk 01:12:40]} {[%emt 00:00:02]} 17. h3 {[%clk 00:50:09]}
{[%emt 00:00:36]} Qe5 {[%clk 01:07:00]} {[%emt 00:06:09]} 18. Ng3 {[%clk
00:47:36]} {[%emt 00:03:04]} Bd7 {[%clk 01:05:27]} {[%emt 00:02:03]} 19. Qd2
{[%clk 00:43:39]} {[%emt 00:04:27]} Qg5 {[%clk 00:58:53]} {[%emt 00:07:04]} 20.
Qxg5 {[%clk 00:37:03]} {[%emt 00:07:05]} hxg5 {[%clk 00:59:06]} {[%emt
00:00:17]} 21. b3 {[%clk 00:37:25]} {[%emt 00:00:08]} g6 {[%clk 00:59:01]}
{[%emt 00:00:35]} 22. Rbe1 {[%clk 00:36:03]} {[%emt 00:01:51]} Kg7 {[%clk
00:58:44]} {[%emt 00:00:47]} 23. f3 {[%clk 00:33:07]} {[%emt 00:03:27]} Nh5
{[%clk 00:55:36]} {[%emt 00:03:37]} 24. Nxh5+ {[%clk 00:30:08]} {[%emt
00:03:29]} gxh5 {[%clk 00:55:37]} {[%emt 00:00:29]} 25. Kf2 {[%clk 00:30:34]}
{[%emt 00:00:05]} h4 {[%clk 00:55:28]} {[%emt 00:00:39]} 26. Re2 {[%clk
00:26:08]} {[%emt 00:04:56]} Rxe2+ {[%clk 00:55:45]} {[%emt 00:00:13]} 27. Kxe2
{[%clk 00:26:33]} {[%emt 00:00:05]} Re8+ {[%clk 00:56:08]} {[%emt 00:00:06]} 28.
Kd2 {[%clk 00:26:58]} {[%emt 00:00:05]} Kf6 {[%clk 00:56:26]} {[%emt 00:00:12]}
29. f4 {[%clk 00:26:41]} {[%emt 00:00:47]} Re7 {[%clk 00:55:47]} {[%emt
00:01:09]} 30. fxg5+ {[%clk 00:23:33]} {[%emt 00:03:39]} Kxg5 {[%clk 00:55:42]}
{[%emt 00:00:33]} 31. Rf2 {[%clk 00:23:10]} {[%emt 00:00:53]} f6 {[%clk
00:55:33]} {[%emt 00:00:39]} 32. Be2 {[%clk 00:16:49]} {[%emt 00:06:51]} Re5
{[%clk 00:55:05]} {[%emt 00:00:58]} 33. Bf3 {[%clk 00:15:14]} {[%emt 00:02:03]}
Be6 {[%clk 00:49:43]} {[%emt 00:05:55]} 34. b4 {[%clk 00:12:45]} {[%emt
00:03:00]} cxb4 {[%clk 00:48:03]} {[%emt 00:02:09]} 35. cxb4 {[%clk 00:12:06]}
{[%emt 00:01:08]} Bf5 {[%clk 00:43:55]} {[%emt 00:04:38]} 36. Kc3 {[%clk
00:09:14]} {[%emt 00:03:22]} Re3+ {[%clk 00:44:16]} {[%emt 00:00:10]} 37. Kd4
{[%clk 00:09:13]} {[%emt 00:00:31]} Rd3+ {[%clk 00:44:40]} {[%emt 00:00:06]} 38.
Kc5 {[%clk 00:09:15]} {[%emt 00:00:28]} Be4 {[%clk 00:44:37]} {[%emt 00:00:33]}
39. a4 {[%clk 00:07:33]} {[%emt 00:02:14]} Rc3+ {[%clk 00:44:18]} {[%emt
00:00:48]} 40. Kb5 {[%clk 00:07:20]} {[%emt 00:00:43]} Bxf3 {[%clk 00:39:52]}
{[%emt 00:04:56]} 41. Rxf3 {[%clk 00:24:11]} {[%emt 00:13:39]} d4 {[%clk
01:09:39]} {[%emt 00:00:42]} 42. Rf2 {[%clk 00:24:10]} {[%emt 00:00:31]} d3
{[%clk 01:09:30]} {[%emt 00:00:40]} 43. Ka6 {[%clk 00:12:48]} {[%emt 00:11:52]}
Rc7 {[%clk 01:09:15]} {[%emt 00:00:44]} 44. b5 {[%clk 00:12:18]} {[%emt
00:01:00]} Rd7 {[%clk 01:08:20]} {[%emt 00:01:25]} 45. Rf1 {[%clk 00:10:52]}
{[%emt 00:01:56]} d2 {[%clk 01:06:20]} {[%emt 00:02:30]} 46. Rd1 {[%clk
00:11:17]} {[%emt 00:00:05]} Kf4 {[%clk 01:06:44]} {[%emt 00:00:06]} 47. a5
{[%clk 00:10:36]} {[%emt 00:01:12]} Ke3 {[%clk 01:07:10]} {[%emt 00:00:04]} 48.
b6 {[%clk 00:10:28]} {[%emt 00:00:38]} axb6 {[%clk 01:07:34]} {[%emt 00:00:06]}
49. axb6 {[%clk 00:08:37]} {[%emt 00:02:21]} Ke2 {[%clk 01:07:58]} {[%emt
00:00:06]} 50. b7 {[%clk 00:06:50]} {[%emt 00:02:16]} Rxb7 {[%clk 01:08:24]}
{[%emt 00:00:05]} 0-1

[Event "LASS Vårturneringar 2018"]
[Site "Linköping, Sweden"]
[Date "2018.05.10"]
[Round "1.8"]
[White "Larsson, Mille"]
[Black "Bernhard, Jonathan"]
[Result "0-1"]
[TimeControl "90 min + 30 sec/move + 30 min/40 moves"]
[WhiteElo "1374"]
[BlackElo "1926"]

1. e4 {[%clk 01:30:58]} {[%emt 00:00:02]} Nc6 {[%clk 01:30:36]} {[%emt
00:00:24]} 2. Nf3 {[%clk 01:31:07]} {[%emt 00:00:21]} e5 {[%clk 01:30:59]}
{[%emt 00:00:06]} 3. Bc4 {[%clk 01:31:30]} {[%emt 00:00:07]} Bc5 {[%clk
01:31:17]} {[%emt 00:00:12]} 4. c3 {[%clk 01:31:52]} {[%emt 00:00:09]} Nf6
{[%clk 01:31:42]} {[%emt 00:00:05]} 5. d3 {[%clk 01:32:14]} {[%emt 00:00:08]}
a6 {[%clk 01:30:27]} {[%emt 00:01:45]} 6. Bb3 {[%clk 01:32:34]} {[%emt
00:00:11]} d6 {[%clk 01:30:31]} {[%emt 00:00:25]} 7. h3 {[%clk 01:32:45]}
{[%emt 00:00:19]} h6 {[%clk 01:30:41]} {[%emt 00:00:20]} 8. O-O {[%clk
01:33:09]} {[%emt 00:00:06]} O-O {[%clk 01:31:06]} {[%emt 00:00:05]} 9. Re1
{[%clk 01:33:30]} {[%emt 00:00:08]} Ba7 {[%clk 01:30:52]} {[%emt 00:00:44]} 10.
Be3 {[%clk 01:33:39]} {[%emt 00:00:22]} Ne7 {[%clk 01:27:45]} {[%emt 00:03:36]}
11. Qd2 {[%clk 01:27:44]} {[%emt 00:06:27]} Bxe3 {[%clk 01:26:11]} {[%emt
00:02:03]} 12. Qxe3 {[%clk 01:27:54]} {[%emt 00:00:21]} Ng6 {[%clk 01:26:24]}
{[%emt 00:00:16]} 13. d4 {[%clk 01:25:48]} {[%emt 00:02:36]} exd4 {[%clk
01:13:40]} {[%emt 00:13:11]} 14. cxd4 {[%clk 01:26:07]} {[%emt 00:00:11]} Re8
{[%clk 01:14:05]} {[%emt 00:00:04]} 15. Nc3 {[%clk 01:25:26]} {[%emt 00:01:12]}
Bf5 {[%clk 01:14:16]} {[%emt 00:00:19]} 16. Bc2 {[%clk 01:23:53]} {[%emt
00:02:03]} Nxe4 {[%clk 01:13:02]} {[%emt 00:01:44]} 17. Qc1 {[%clk 01:17:14]}
{[%emt 00:07:09]} d5 {[%clk 01:08:03]} {[%emt 00:05:29]} 18. g4 {[%clk
01:13:33]} {[%emt 00:04:12]} Nh4 {[%clk 01:06:43]} {[%emt 00:01:49]} 19. Nxh4
{[%clk 01:12:12]} {[%emt 00:01:52]} Qxh4 {[%clk 01:07:11]} {[%emt 00:00:01]} 20.
Nxe4 {[%clk 01:09:08]} {[%emt 00:03:35]} Bxe4 {[%clk 01:07:04]} {[%emt
00:00:36]} 21. Bxe4 {[%clk 01:09:07]} {[%emt 00:00:31]} Rxe4 {[%clk 01:07:17]}
{[%emt 00:00:16]} 22. Rxe4 {[%clk 01:09:32]} {[%emt 00:00:06]} dxe4 {[%clk
01:07:43]} {[%emt 00:00:04]} 23. Qe3 {[%clk 01:10:01]} {[%emt 00:00:02]} Re8
{[%clk 01:07:27]} {[%emt 00:00:45]} 24. Kg2 {[%clk 01:10:16]} {[%emt 00:00:15]}
Re6 {[%clk 01:05:51]} {[%emt 00:02:06]} 25. Rc1 {[%clk 01:09:21]} {[%emt
00:01:25]} Rf6 {[%clk 01:03:45]} {[%emt 00:02:36]} 26. Rc3 {[%clk 01:08:50]}
{[%emt 00:01:02]} Rf3 {[%clk 01:02:06]} {[%emt 00:02:07]} 27. Qe2 {[%clk
01:08:48]} {[%emt 00:00:33]} Qxh3+ {[%clk 01:02:14]} {[%emt 00:00:22]} 28. Kg1
{[%clk 01:09:05]} {[%emt 00:00:13]} 0-1

[Event "LASS Vårturneringar 2018"]
[Site "Linköping, Sweden"]
[Date "2018.05.10"]
[Round "1.4"]
[White "Alos, Raul Toledano"]
[Black "Tiger-Norqvist, Axel"]
[Result "1/2-1/2"]
[TimeControl "90 min + 30 sec/move + 30 min/40 moves"]
[WhiteElo "1772"]
[BlackElo "2146"]

1. e4 {[%clk 01:30:57]} e6 {[%clk 01:30:51]} {[%emt 00:00:10]} 2. d4 {[%clk
01:31:19]} {[%emt 00:00:08]} d5 {[%clk 01:31:15]} {[%emt 00:00:06]} 3. e5
{[%clk 01:31:36]} {[%emt 00:00:13]} c5 {[%clk 01:31:24]} {[%emt 00:00:20]} 4.
c3 {[%clk 01:32:01]} {[%emt 00:00:06]} Nc6 {[%clk 01:31:48]} {[%emt 00:00:07]}
5. Nf3 {[%clk 01:32:23]} {[%emt 00:00:08]} Qb6 {[%clk 01:31:42]} {[%emt
00:00:36]} 6. a3 {[%clk 01:32:44]} {[%emt 00:00:10]} Nh6 {[%clk 01:30:36]}
{[%emt 00:01:36]} 7. b4 {[%clk 01:31:57]} {[%emt 00:01:17]} cxd4 {[%clk
01:30:59]} {[%emt 00:00:07]} 8. Bxh6 {[%emt 00:00:10]} gxh6 {[%emt 00:00:31]} 9.
cxd4 {[%clk 01:31:31]} {[%emt 00:00:15]} Bd7 {[%clk 01:29:36]} {[%emt
00:01:53]} 10. Nc3 {[%clk 01:31:00]} {[%emt 00:01:00]} a5 {[%clk 00:58:32]}
{[%emt 00:31:31]} 11. b5 {[%clk 01:30:54]} {[%emt 00:00:37]} Na7 {[%clk
00:57:33]} {[%emt 00:01:29]} 12. Qb1 {[%clk 01:26:38]} {[%emt 00:04:45]} a4
{[%clk 00:56:33]} {[%emt 00:01:30]} 13. Bd3 {[%clk 01:23:44]} {[%emt 00:03:24]}
Qa5 {[%clk 00:52:54]} {[%emt 00:04:09]} 14. Qb2 {[%clk 01:17:05]} {[%emt
00:07:09]} Rc8 {[%clk 00:50:43]} {[%emt 00:02:41]} 15. Kd2 {[%clk 01:17:16]}
{[%emt 00:00:19]} Rg8 {[%clk 00:47:52]} {[%emt 00:03:21]} 16. g3 {[%clk
01:17:22]} {[%emt 00:00:24]} h5 {[%clk 00:48:02]} {[%emt 00:00:19]} 17. h4
{[%clk 01:15:34]} {[%emt 00:02:18]} Rg4 {[%clk 00:47:13]} {[%emt 00:01:19]} 18.
Rhc1 {[%clk 01:07:45]} {[%emt 00:08:20]} Bh6+ {[%clk 00:46:38]} {[%emt
00:01:06]} 19. Ke2 {[%clk 01:08:05]} {[%emt 00:00:10]} Bxc1 {[%clk 00:46:54]}
{[%emt 00:00:14]} 20. Rxc1 {[%clk 01:08:31]} {[%emt 00:00:05]} Ke7 {[%clk
00:45:15]} {[%emt 00:02:08]} 21. Qd2 {[%clk 01:05:33]} {[%emt 00:03:27]} Rxc3
{[%clk 00:26:14]} {[%emt 00:19:31]} 22. Qxc3 {[%clk 01:01:59]} {[%emt
00:04:04]} Qxc3 {[%clk 00:26:32]} {[%emt 00:00:13]} 23. Rxc3 {[%clk 01:02:14]}
{[%emt 00:00:14]} Nxb5 {[%clk 00:26:48]} {[%emt 00:00:14]} 24. Bxb5 {[%clk
01:02:31]} {[%emt 00:00:12]} Bxb5+ {[%clk 00:27:07]} {[%emt 00:00:13]} 25. Ke3
{[%clk 01:02:46]} {[%emt 00:00:15]} Re4+ {[%clk 00:24:33]} {[%emt 00:03:04]} 26.
Kd2 {[%clk 01:02:33]} {[%emt 00:00:42]} Re2+ {[%clk 00:24:52]} {[%emt
00:00:11]} 27. Kd1 {[%clk 01:01:00]} {[%emt 00:02:03]} Rxf2 {[%clk 00:24:56]}
{[%emt 00:00:26]} 28. Ng5 {[%clk 00:57:55]} {[%emt 00:03:35]} Bc4 {[%clk
00:21:13]} {[%emt 00:04:14]} 29. Nxh7 {[%clk 00:55:20]} {[%emt 00:03:05]} b5
{[%clk 00:18:31]} {[%emt 00:03:12]} 30. Nf6 {[%clk 00:53:39]} {[%emt 00:02:11]}
Ra2 {[%clk 00:16:44]} {[%emt 00:02:17]} 31. Kc1 {[%emt 00:03:34]} Ra1+ {[%clk
00:16:51]} {[%emt 00:00:20]} 32. Kc2 {[%clk 00:44:25]} {[%emt 00:06:43]} b4
{[%clk 00:16:42]} {[%emt 00:00:39]} 33. axb4 {[%clk 00:43:54]} {[%emt
00:01:01]} a3 {[%clk 00:16:32]} {[%emt 00:00:39]} 34. b5 {[%clk 00:42:32]}
{[%emt 00:01:52]} a2 {[%clk 00:15:32]} {[%emt 00:01:30]} 35. Ra3 {[%clk
00:42:26]} {[%emt 00:00:36]} Rb1 {[%clk 00:15:20]} {[%emt 00:00:42]} 36. Ra7+
{[%clk 00:41:51]} {[%emt 00:01:04]} Kd8 {[%clk 00:14:59]} {[%emt 00:00:51]} 37.
b6 {[%clk 00:38:53]} {[%emt 00:03:28]} a1=Q {[%clk 00:13:41]} {[%emt 00:01:47]}
38. Rd7+ {[%clk 00:38:51]} {[%emt 00:00:31]} Kc8 {[%clk 00:14:02]} {[%emt
00:00:09]} 39. Rc7+ {[%clk 00:38:49]} {[%emt 00:00:32]} Kb8 {[%clk 00:13:14]}
{[%emt 00:01:17]} 40. Nd7+ {[%clk 00:37:55]} {[%emt 00:01:24]} Ka8 {[%clk
00:13:38]} {[%emt 00:00:07]} 41. Rc8+ {[%clk 00:34:00]} {[%emt 00:04:24]} Kb7
{[%clk 00:14:01]} {[%emt 00:00:08]} 42. Rc7+ {[%clk 00:34:21]} {[%emt
00:00:09]} Ka8 {[%clk 00:12:09]} {[%emt 00:02:21]} 43. Rc8+ {[%clk 00:34:32]}
{[%emt 00:00:19]} Kb7 {[%clk 00:12:35]} {[%emt 00:00:05]} 44. Rc7+ {[%clk
00:34:54]} {[%emt 00:00:08]} Ka8 {[%clk 00:12:13]} {[%emt 00:00:52]} 45. Rc8+
{[%clk 00:35:14]} {[%emt 00:00:09]} 1/2-1/2

[Event "LASS Vårturneringar 2018"]
[Site "Linköping, Sweden"]
[Date "2018.05.10"]
[Round "1.7"]
[White "Sahlström, Alex"]
[Black "Amberts, Jens"]
[Result "0-1"]
[TimeControl "90 min + 30 sec/move + 30 min/40 moves"]
[WhiteElo "1463"]
[BlackElo "1942"]

1. e4 {[%clk 01:30:57]} {[%emt 00:00:03]} e5 {[%clk 01:30:59]} {[%emt
00:00:02]} 2. Nf3 {[%clk 01:31:16]} {[%emt 00:00:11]} Nf6 {[%clk 01:31:27]}
{[%emt 00:00:02]} 3. Nxe5 {[%clk 01:31:39]} {[%emt 00:00:08]} d6 {[%clk
01:31:54]} {[%emt 00:00:02]} 4. Nf3 {[%clk 01:32:01]} {[%emt 00:00:07]} Nxe4
{[%clk 01:32:17]} {[%emt 00:00:07]} 5. Nc3 {[%clk 01:32:23]} {[%emt 00:00:09]}
Nxc3 {[%clk 01:32:07]} {[%emt 00:00:40]} 6. dxc3 {[%clk 01:32:43]} {[%emt
00:00:10]} Be7 {[%clk 01:32:22]} {[%emt 00:00:14]} 7. Be3 {[%clk 01:32:55]}
{[%emt 00:00:19]} Nc6 {[%clk 01:32:37]} {[%emt 00:00:15]} 8. Qd2 {[%clk
01:31:48]} {[%emt 00:01:37]} O-O {[%clk 01:31:30]} {[%emt 00:01:32]} 9. O-O-O
{[%clk 01:30:52]} {[%emt 00:01:30]} Be6 {[%clk 01:21:35]} {[%emt 00:10:24]} 10.
Kb1 {[%clk 01:21:40]} {[%emt 00:09:44]} Ne5 {[%clk 01:20:31]} {[%emt 00:01:32]}
11. Nxe5 {[%clk 01:14:34]} {[%emt 00:07:34]} dxe5 {[%clk 01:20:59]} {[%emt
00:00:03]} 12. Qe2 {[%clk 01:14:55]} {[%emt 00:00:08]} Qe8 {[%clk 01:18:53]}
{[%emt 00:02:36]} 13. g4 {[%clk 01:14:24]} {[%emt 00:01:02]} Qa4 {[%clk
01:17:57]} {[%emt 00:01:25]} 14. c4 {[%clk 01:00:17]} {[%emt 00:14:38]} b5
{[%clk 01:15:57]} {[%emt 00:02:29]} 15. b3 {[%clk 00:59:47]} {[%emt 00:01:00]}
Qa5 {[%clk 01:10:32]} {[%emt 00:05:54]} 16. Bd2 {[%clk 00:58:49]} {[%emt
00:01:28]} b4 {[%clk 01:10:21]} {[%emt 00:00:41]} 17. g5 {[%clk 00:56:13]}
{[%emt 00:03:06]} Rad8 {[%clk 01:05:14]} {[%emt 00:05:37]} 18. h4 {[%clk
00:51:46]} {[%emt 00:04:58]} Rd4 {[%clk 01:02:48]} {[%emt 00:02:43]} 19. Bh3
{[%clk 00:30:25]} {[%emt 00:22:04]} Bxh3 {[%clk 01:00:21]} {[%emt 00:02:57]} 20.
Rxh3 {[%clk 00:29:54]} {[%emt 00:01:02]} Rfd8 {[%clk 01:00:10]} {[%emt
00:00:40]} 21. Re3 {[%clk 00:28:38]} {[%emt 00:01:47]} f6 {[%clk 00:58:29]}
{[%emt 00:02:10]} 22. gxf6 {[%clk 00:25:53]} {[%emt 00:03:15]} Bxf6 {[%clk
00:58:12]} {[%emt 00:00:46]} 23. Rd3 {[%clk 00:10:13]} {[%emt 00:16:11]} Rxd3
{[%clk 00:53:23]} {[%emt 00:05:19]} 24. cxd3 {[%clk 00:10:08]} {[%emt
00:00:35]} Qc5 {[%clk 00:40:18]} {[%emt 00:13:35]} 25. Bg5 {[%clk 00:08:20]}
{[%emt 00:02:18]} Bxg5 {[%clk 00:39:18]} {[%emt 00:01:30]} 26. hxg5 {[%clk
00:08:44]} {[%emt 00:00:07]} Qd4 {[%clk 00:34:54]} {[%emt 00:04:54]} 27. Qh5
{[%clk 00:06:22]} {[%emt 00:02:51]} g6 {[%clk 00:31:51]} {[%emt 00:03:34]} 28.
Qh3 {[%clk 00:06:14]} {[%emt 00:00:39]} e4 {[%clk 00:26:25]} {[%emt 00:05:57]}
29. Qe3 {[%clk 00:03:50]} {[%emt 00:02:53]} exd3 {[%clk 00:22:39]} {[%emt
00:04:14]} 30. Qxd4 {[%clk 00:00:36]} {[%emt 00:03:46]} Rxd4 {[%clk 00:23:06]}
{[%emt 00:00:02]} 31. Kc1 {[%clk 00:00:32]} {[%emt 00:00:35]} Kf7 {[%clk
00:23:04]} {[%emt 00:00:31]} 32. Kd2 {[%clk 00:00:59]} {[%emt 00:00:04]} Rg4
{[%clk 00:21:07]} {[%emt 00:02:26]} 33. Rh1 {[%clk 00:00:38]} {[%emt 00:00:52]}
Kg8 {[%clk 00:20:19]} {[%emt 00:01:17]} 34. Rh3 {[%clk 00:00:56]} {[%emt
00:00:12]} Rxg5 {[%clk 00:18:57]} {[%emt 00:01:52]} 35. Rxd3 {[%clk 00:01:21]}
{[%emt 00:00:06]} Rf5 {[%clk 00:18:08]} {[%emt 00:01:18]} 36. Ke3 {[%clk
00:00:55]} {[%emt 00:00:55]} h5 {[%clk 00:17:46]} {[%emt 00:00:52]} 37. Rd7
{[%clk 00:00:37]} {[%emt 00:00:49]} h4 {[%clk 00:11:30]} {[%emt 00:06:46]} 38.
Rxc7 {[%clk 00:00:48]} {[%emt 00:00:19]} h3 {[%clk 00:11:58]} {[%emt 00:00:01]}
0-1